Cogmind - Beta 13 @@@ ROGUE MODE // 2024.04.02 @ 17:06:14 Player: feesh Result: Destroyed by S-10 Pest with Light Assault Rifle Performance ------------- Evolutions (1) 500 Regions Visited (6) 1200 Robots Destroyed (74) 370 Value Destroyed (1525) 1525 Prototype IDs (1) 20 Alien Tech Used (0) 0 Bonus (305) 305 TOTAL SCORE: 3920 Bonus ------- Follower Combat Kills 25 Aligned with FarCom 300 Friendly Fire -20 Cogmind --------- Core Integrity 0/400 Matter 277/300 Energy 157/160 System Corruption 0% Temperature Cool (0) Movement Rolling (86) Location -8/Mines Parts ------- > --- POWER (1) -------- Light Nuclear Core > --- PROPULSION (3) --- Wheel Wheel Compact Wheel > --- UTILITY (3) ------ Improved Heat Sink Advanced Heat Sink Targeting Computer > --- WEAPON (2) ------- Advanced Beam Cannon Heavy Particle Cannon > --- INVENTORY (5) ---- Light Nuclear Core Minigun Grenade Launcher Grenade Launcher Peak State ------------ > --- POWER ------------ Improved Ion Engine > --- PROPULSION ------- Improved Treads Improved Treads Improved Treads > --- UTILITY ---------- Heat Sink Large Storage Unit Hardened Medium Armor Plating > --- WEAPON ----------- Advanced Beam Cannon Minigun > --- INVENTORY -------- Ion Engine Ion Engine Improved Ion Engine Improved Treads Improved Treads Heat Sink Hardened Medium Armor Plating Beam Rifle Advanced Beam Cannon Advanced Beam Cannon Minigun Heavy Battle Rifle Grenade Launcher Grenade Launcher Grenade Launcher [Rating: 22] Favorites ----------- Power Ion Engine Engine Ion Engine Power Core Light Nuclear Core Propulsion Improved Treads Treads Improved Treads Leg Aluminum Leg Wheel Compact Wheel Utility Large Storage Unit Device Advanced Heat Sink Storage Large Storage Unit Processor Signal Interpreter Protection Hardened Medium Armor Plating Weapon Advanced Beam Cannon Energy Gun Beam Rifle Energy Cannon Advanced Beam Cannon Ballistic Gun Minigun Launcher Grenade Launcher Build | -11 -10 -10 -9 -9 -9 -8 ------- Run | Yrd Mat Min Mat Min Exi Min Slots Evolved 2 | . . . 2 . . . Power . | . . . . . . . Propulsion 1 | . . . 1 . . . Utility 1 | . . . 1 . . . Weapon . | . . . . . . . Parts Attached 54 | 6 5 2 19 . . 22 Power 7 | 1 . 1 1 . . 4 Engine 5 | 1 . 1 1 . . 2 Core 2 | . . . . . . 2 Reactor . | . . . . . . . Propulsion 15 | 2 . . 6 . . 7 Treads 6 | . . . 4 . . 2 Leg 5 | 2 . . 2 . . 1 Wheel 4 | . . . . . . 4 Hover . | . . . . . . . Flight . | . . . . . . . Utility 13 | 1 2 1 6 . . 3 Device 4 | . . . 2 . . 2 Storage 3 | 1 . 1 1 . . . Processor 3 | . 1 . 1 . . 1 Hackware . | . . . . . . . Protection 3 | . 1 . 2 . . . Artifact . | . . . . . . . Weapon 19 | 2 3 . 6 . . 8 Energy Gun 4 | 2 2 . . . . . Energy Cannon 7 | . 1 . 3 . . 3 Ballistic Gun 6 | . . . 3 . . 3 Ballistic Cannon . | . . . . . . . Launcher 2 | . . . . . . 2 Special Weapon . | . . . . . . . Impact Weapon . | . . . . . . . Slashing Weapon . | . . . . . . . Piercing Weapon . | . . . . . . . Special Melee Weapon . | . . . . . . . Unidentified Prototypes 1 | . . . 1 . . . Parts Lost 17 | . . . 3 1 . 13 Power 2 | . . . . . . 2 Propulsion 6 | . . . 1 . . 5 Utility 5 | . . . 2 1 . 2 Weapon 4 | . . . . . . 4 Highest Loss Streak 8 | . . . 2 1 . 8 To Critical Strikes . | . . . . . . . Average Slot Usage (%) 88 | . 96 99 99 93 77 70 Engine 9 | . 14 13 11 11 11 2 Core 1 | . . . . . . 7 Treads 13 | . . . 23 29 22 1 Leg 10 | . 28 28 8 . . 6 Wheel 1 | . . . . . . 9 Device 4 | . . . 4 8 . 11 Storage 11 | . 14 14 11 11 11 8 Processor 3 | . 8 . 6 . . 1 Protection 8 | . 2 14 10 11 11 . Energy Gun 7 | . 28 28 2 . . . Energy Cannon 9 | . . . 7 22 22 5 Ballistic Gun 6 | . . . 11 . . 14 Naked Turns . | . . . . . . . Heaviest Build 44 | 14 23 28 44 44 43 43 Greatest Support 69 | 20 20 20 69 69 46 66 Greatest Overweight (x) 11 | . 1 1 9 . . 11 Average Overweight (x) . | . . 1 . . . 1 Largest Inventory Capacity 15 | 8 8 10 15 15 15 15 Average Capacity 12 | 7 8 8 12 15 15 12 Most Carried 15 | 4 8 9 15 14 15 15 Average Carried 11 | 2 5 8 11 13 14 10 Final Capacity 15 | 8 8 10 15 15 15 5 Final Carried 15 | 4 8 9 13 14 15 4 Class Distribution -------------------- 93% | Mutant 6% | Scavenger-Mutant Dominant Class ---------------- Mutant | -10/Materials Mutant | -10/Mines Mutant | -9/Materials Mutant | -9/Mines Mutant | -9/Exiles Mutant | -8/Mines Resources | -11 -10 -10 -9 -9 -9 -8 ----------- Run | Yrd Mat Min Mat Min Exi Min Matter Collected 1239 | 182 125 20 465 . . 447 Remotely . | . . . . . . . Salvage Created 2241 | . 251 . 1192 177 . 621 Parts 148 | . 25 . 81 9 . 33 Haulers Intercepted 2 | . . . 2 . . . Recyclers Shooed . | . . . . . . . Parts Field Recycled . | . . . . . . . Retrieved Matter . | . . . . . . . Parts Self-Destructed . | . . . . . . . Prevented . | . . . . . . . Kills | -11 -10 -10 -9 -9 -9 -8 ------- Run | Yrd Mat Min Mat Min Exi Min Combat Hostiles Destroyed 54 | . 10 . 25 4 . 15 Guns 39 | . 9 . 20 . . 10 Cannons 11 | . . . 5 4 . 2 AOE 4 | . 1 . . . . 3 Classes Destroyed 11 | . 5 . 5 . . 1 Worker 3 | . 1 . 1 . . 1 Tunneler 2 | . . . 1 . . 1 Hauler 2 | . . . 2 . . . Recycler 5 | . . . 2 . . 3 Operator 1 | . 1 . . . . . Watcher 7 | . 2 . 5 . . . Swarmer 29 | . 9 . 11 . . 9 Grunt 15 | . 1 . 6 3 . 5 Brawler 1 | . . . . . . 1 Duelist 2 | . . . 1 1 . . Sentry 7 | . . . 7 . . . Best Kill Streak 8 | . 8 . 7 2 . 4 Combat Bots Only 6 | . 6 . 5 2 . 3 Max Kills in Single Turn 3 | . 3 . 2 1 . 3 Gunslinging 1 | . 1 . . . . . Exploded 3 | . 1 . . . . 3 Melee . | . . . . . . . Uniques/NPCs Destroyed . | . . . . . . . Combat | -11 -10 -10 -9 -9 -9 -8 -------- Run | Yrd Mat Min Mat Min Exi Min Hostile Shots Fired 298 | . 42 . 110 16 . 130 Missed 67 | . 7 . 25 5 . 30 Damage Taken 2868 | . 300 . 1028 188 . 1352 Core 470 | . 70 . 85 12 . 303 Absorbed by Shields . | . . . . . . . Core Remaining (%) 86 | 100 . 72 . . . . Volleys Fired 170 | . 23 . 84 10 . 53 Largest 2 | . 2 . 2 2 . 2 Hottest 143 | . 112 . 136 136 . 143 Shots Fired 318 | . 46 . 165 20 . 87 Gun 227 | . 46 . 118 . . 63 Cannon 87 | . . . 47 20 . 20 Launcher 4 | . . . . . . 4 Special . | . . . . . . . Kinetic 140 | . . . 77 . . 63 Thermal 132 | . 4 . 88 20 . 20 Explosive 4 | . . . . . . 4 Electromagnetic 42 | . 42 . . . . . Robot Hit Streak 14 | . 4 . 14 5 . 8 Robot Miss Streak 7 | . 5 . 7 3 . 3 Penetration Max . | . . . . . . . Secondary Targets 5 | . 3 . 1 . . 1 Max Gunslinging Chain 1 | . 1 . 1 . . 1 Shots Hit Robots 154 | . 23 . 77 12 . 42 Core Hits 90 | . 16 . 40 6 . 28 Critical Kills . | . . . . . . . Critical Parts Destroyed . | . . . . . . . Critical Strikes 1 | . . . 1 . . . Burn 1 | . . . 1 . . . Melee Attacks . | . . . . . . . Impact . | . . . . . . . Slashing . | . . . . . . . Piercing . | . . . . . . . Sneak Attacks . | . . . . . . . Combat Hostiles . | . . . . . . . Follow-up Attacks . | . . . . . . . Damage Inflicted 3493 | . 578 . 1502 305 . 1108 Guns 2049 | . 328 . 983 . . 738 Cannons 921 | . . . 510 305 . 106 Explosions 511 | . 249 . . . . 262 Melee . | . . . . . . . Ramming 12 | . 1 . 9 . . 2 Kinetic 1357 | . . . 619 . . 738 Thermal 1549 | . 264 . 874 305 . 106 Explosive 262 | . . . . . . 262 Electromagnetic 313 | . 313 . . . . . Impact . | . . . . . . . Slashing . | . . . . . . . Piercing . | . . . . . . . Highest Corruption . | . . . . . . . Average Corruption . | . . . . . . . Corruption Purged . | . . . . . . . Corruption Blocked . | . . . . . . . Overload Shots . | . . . . . . . Overflow Damage 12 | . 4 . 7 . . 1 Projectiles 8 | . . . 7 . . 1 Explosions 4 | . 4 . . . . . Melee . | . . . . . . . Knockbacks . | . . . . . . . Impact . | . . . . . . . Kinetic . | . . . . . . . Secondary . | . . . . . . . Self-Inflicted Damage 38 | . 7 . . . . 31 Shots 2 | . 1 . . . . 1 Rammed 2 | . . . 2 . . . Targets Rammed 4 | . 1 . 2 . . 1 Kicked 2 | . 1 . . . . 1 Crushed . | . . . . . . . Highest Temperature 571 | . 138 . 486 447 . 571 Average Temperature 125 | . 51 . 124 172 . 173 Received Heat Transfer 987 | . 18 . 306 51 . 612 Effects 21 | . . . 11 6 . 4 Shutdowns 1 | . . . . 1 . . Interference 9 | . . . 9 . . . Matter Decay 1 | . . . . . . 1 Short Circuit 1 | . . . 1 . . . Damage (minor) 2 | . . . 1 . . 1 Damage (major) 7 | . . . . 5 . 2 Siege Activations . | . . . . . . . Robots Corrupted . | . . . . . . . Combat Hostiles . | . . . . . . . Parts Fried . | . . . . . . . Impact Corruptions . | . . . . . . . Robots Melted . | . . . . . . . Combat Hostiles . | . . . . . . . Parts Melted 2 | . . . 2 . . . Heat Transferred 2951 | . 287 . 1924 555 . 185 Parts Sabotaged . | . . . . . . . Parts Stolen . | . . . . . . . Parts Stripped . | . . . . . . . Power Chain Reactions 4 | . 4 . . . . . Alert | -11 -10 -10 -9 -9 -9 -8 ------- Run | Yrd Mat Min Mat Min Exi Min Peak Influence 385 | . 335 64 385 163 . 152 Initial 64 | . . 64 5 57 . . Average 117 | . 197 36 170 130 . 58 Maximum Alert Level 1 | . 1 . 1 . . . Low Security (%) 78 | 100 47 100 58 100 . 100 Level 1 21 | . 52 . 41 . . . Level 2 . | . . . . . . . Level 3 . | . . . . . . . Level 4 . | . . . . . . . Level 5 . | . . . . . . . High Security . | . . . . . . . Max Security . | . . . . . . . Squads Dispatched 1 | . 1 . . . . . Investigation 1 | . 1 . . . . . Extermination . | . . . . . . . Reinforcement . | . . . . . . . Assault . | . . . . . . . Garrison . | . . . . . . . Intercept . | . . . . . . . Searches Triggered . | . . . . . . . Construction Impeded . | . . . . . . . Haulers Reinforced . | . . . . . . . Active Scanning Responses . | . . . . . . . Cargo Convoy Interrupts . | . . . . . . . Stealth | -11 -10 -10 -9 -9 -9 -8 --------- Run | Yrd Mat Min Mat Min Exi Min Distress Signals 8 | . 3 . 5 . . . Communications Jammed . | . . . . . . . Distress Signals . | . . . . . . . Times Spotted 79 | . 17 1 38 5 . 18 Peak Tracking Total 7 | . 7 2 6 3 . 3 Tactical Retreats 3 | . 3 . . . . . Traps | -11 -10 -10 -9 -9 -9 -8 ------- Run | Yrd Mat Min Mat Min Exi Min Traps Triggered 1 | . 1 . . . . . Indirectly . | . . . . . . . Trap Hack Attempts . | . . . . . . . Triggered . | . . . . . . . Disarmed . | . . . . . . . Reprogrammed . | . . . . . . . Reused . | . . . . . . . Traps Extracted . | . . . . . . . Installed . | . . . . . . . Triggered . | . . . . . . . Machines | -11 -10 -10 -9 -9 -9 -8 ---------- Run | Yrd Mat Min Mat Min Exi Min Machines Disabled 2 | . . . 2 . . . Max in Single Turn 1 | . . . 1 . . . Machines Repaired . | . . . . . . . Machines Dismantled . | . . . . . . . Machines Sabotaged . | . . . . . . . Overloaded Fab Kills . | . . . . . . . Hacking | -11 -10 -10 -9 -9 -9 -8 --------- Run | Yrd Mat Min Mat Min Exi Min Machines Accessed 10 | . 2 . 7 . 1 . Terminals 4 | . 1 . 3 . . . Fabricators . | . . . . . . . Repair Stations 1 | . . . 1 . . . Recycling Units 3 | . 1 . 2 . . . Scanalyzers 1 | . . . 1 . . . Garrison Access . | . . . . . . . Total Hacks 23 | . 4 . 17 . 2 . Successful 16 | . 3 . 11 . 2 . Failed 7 | . 1 . 6 . . . Catastrophic . | . . . . . . . Database Lockouts . | . . . . . . . Manual . | . . . . . . . Terminals 10 | . 2 . 8 . . . Fabricators . | . . . . . . . Repair Stations 3 | . . . 3 . . . Recycling Units 4 | . 2 . 2 . . . Scanalyzers 4 | . . . 4 . . . Garrison Access . | . . . . . . . Terminal Hacks 7 | . 1 . 4 . 2 . Record 3 | . . . 1 . 2 . Alert Level 1 | . . . 1 . . . Unreport Threat 1 | . . . 1 . . . Locate Traps 1 | . 1 . . . . . Zone Layout 1 | . . . 1 . . . Fabricator Hacks . | . . . . . . . Repair Station Hacks 1 | . . . 1 . . . Scan Component 1 | . . . 1 . . . Recycling Unit Hacks 4 | . 2 . 2 . . . Report Inventory 3 | . 1 . 2 . . . Retrieve Components 1 | . 1 . . . . . Scanalyzer 4 | . . . 4 . . . Insert Component 2 | . . . 2 . . . Analyze 2 | . . . 2 . . . Garrison Access Hacks . | . . . . . . . Unauthorized Hacks . | . . . . . . . Terminals . | . . . . . . . Fabricators . | . . . . . . . Repair Stations . | . . . . . . . Recycling Units . | . . . . . . . Scanalyzers . | . . . . . . . Garrison Access . | . . . . . . . Data Cores Recovered 1 | . 1 . . . . . Used . | . . . . . . . Hacking Detections 6 | . 2 . 4 . . . Full Trace Events . | . . . . . . . Feedback Events . | . . . . . . . Feedback Blocked . | . . . . . . . Robot Schematics Acquired . | . . . . . . . Robots Built . | . . . . . . . Authchips . | . . . . . . . Time . | . . . . . . . Total Robot Build Rating . | . . . . . . . Part Schematics Acquired 2 | . . . 2 . . . Parts Built . | . . . . . . . Authchips . | . . . . . . . Time . | . . . . . . . Total Part Build Rating . | . . . . . . . Parts Repaired . | . . . . . . . Time . | . . . . . . . Parts Recycled . | . . . . . . . Recycled Matter . | . . . . . . . Retrieved Matter . | . . . . . . . Retrieved Components . | . . . . . . . Parts Scanalyzed 2 | . . . 2 . . . Part Schematics Acquired 2 | . . . 2 . . . Parts Damaged 1 | . . . 1 . . . Bothacking | -11 -10 -10 -9 -9 -9 -8 ------------ Run | Yrd Mat Min Mat Min Exi Min Used RIF Installer . | . . . . . . . Robots Hacked . | . . . . . . . Non-combat . | . . . . . . . Combat . | . . . . . . . Robot Hacks Applied . | . . . . . . . Relay Couplers Released . | . . . . . . . Fabnet Peak Effective % . | . . . . . . . Robots Rewired . | . . . . . . . Allies Hacked . | . . . . . . . Hacks Repelled . | . . . . . . . Allies | -11 -10 -10 -9 -9 -9 -8 -------- Run | Yrd Mat Min Mat Min Exi Min Total Allies 1 | . . . . 1 . . Largest Group 1 | . . . . 1 . . Highest-Rated Group 31 | . . . . 31 . . Highest-Rated Ally 31 | . . . . 31 . . Total Orders . | . . . . . . . Ally Attacks 6 | . . . . 6 . . Total Damage 102 | . . . . 102 . . Kills 1 | . . . . 1 . . Allies Corrupted . | . . . . . . . Allies Melted . | . . . . . . . Intel | -11 -10 -10 -9 -9 -9 -8 ------- Run | Yrd Mat Min Mat Min Exi Min Robot Analysis Total . | . . . . . . . Derelict Logs Recovered 2 | . . 1 . 1 . . Drone Launches . | . . . . . . . Drone Recoveries . | . . . . . . . Exploration | -11 -10 -10 -9 -9 -9 -8 ------------- Run | Yrd Mat Min Mat Min Exi Min Turns Passed 5248 | 65 476 718 1641 318 984 1046 Spaces Moved 2869 | 45 293 369 871 175 615 501 Core 7 | 2 . . 1 . . 4 Treads 1436 | . . . 623 175 615 23 Legs 1112 | 43 293 369 247 . . 160 Wheels 314 | . . . . . . 314 Hover . | . . . . . . . Flight . | . . . . . . . Fastest Speed 50 | 50 120 190 120 160 160 86 Average Speed 158 | 116 128 190 149 160 160 171 Slowest Speed 600 | 120 190 190 500 160 160 600 Overloaded Moves . | . . . . . . . Propulsion Burnouts . | . . . . . . . Robots Hopped . | . . . . . . . Cave-ins Triggered . | . . . . . . . Exploration Rate (%) 60 | 4 46 83 66 38 92 92 Regions Visited 6 Branch Regions 4 Pre-discovered Areas 2 | . . 1 . . 1 . Known Exits Taken 2 | . 1 . 1 . . . Unknown Exits Taken 4 | 1 . 1 . 1 1 . Scrap Searched 4 | . . 2 . 1 . 1 Spaces Dug . | . . . . . . . Terrain Destroyed 30 | . 10 . . . . 20 Melee . | . . . . . . . Projectile 4 | . . . . . . 4 AOE 26 | . 10 . . . . 16 Terrain Rammed . | . . . . . . . Walls Destroyed . | . . . . . . . Machines Disabled . | . . . . . . . Actions | -11 -10 -10 -9 -9 -9 -8 --------- Run | Yrd Mat Min Mat Min Exi Min Total 3259 | 55 348 388 1060 193 615 600 Wait 84 | . 14 9 44 8 . 9 Move 2863 | 44 292 368 870 174 614 501 Hop . | . . . . . . . Pick Up 55 | 5 9 5 24 1 1 10 Fast Attach 13 | 5 1 . 3 . . 4 Attach 18 | 1 . 1 5 . . 11 Detach . | . . . . . . . Swap 23 | . 4 1 11 . . 7 Drop 29 | . 4 4 17 . . 4 Fire 170 | . 23 . 84 10 . 53 Melee . | . . . . . . . Ram . | . . . . . . . Kick 2 | . 1 . . . . 1 Crush 2 | . . . 2 . . . Escape Stasis . | . . . . . . . Rewire . | . . . . . . . Trap . | . . . . . . . Miscellaneous . | . . . . . . . Route ------- -11/Scrapyard -10/Materials (discovered 3 exits: *Mat x2 / *Min) -10/Mines -9/Materials (discovered 4 exits: [*Mat] / *Min x2 / *Sto) -9/Mines (discovered 2 exits: *Exi / [*Zio]) -9/Exiles -8/Mines (discovered 2 exits: [*Mat x2]) History --------- Turn | Location | Event 8 | -11/Scrapyard | Discovered new exit (range 15) 66 | -11/Scrapyard | Entered Materials 147 | -10/Materials | Discovered new exit (range 8) 310 | -10/Materials | Build established: Mutant 382 | -10/Materials | Discovered new exit (range 15) 398 | -10/Materials | Identified exit to Mines 421 | -10/Materials | Discovered new exit (range 16) 542 | -10/Materials | Entered Mines 550 | -10/Mines | Met a Derelict bent on vengeance 563 | -10/Mines | Received a Rocket Launcher from a helpful Derelict 696 | -10/Mines | Learned location of Storage (-9) 729 | -10/Mines | A weapon hastily lodged in a ceiling crevice suddenly fell to the ground 1112 | -10/Mines | Learned Materials stockpile data 1215 | -10/Mines | Discovered new exit (range 9) 1228 | -10/Mines | Joined a pair of Derelicts in attacking an 0b10 outpost 1260 | -10/Mines | Entered Materials 1260 | -9/Materials | Evolved 2 slots: Propulsion x1, Utility x1 1437 | -9/Materials | Discovered new exit (range 9) 1457 | -9/Materials | Identified exit to Mines 1904 | -9/Materials | Discovered new exit (range 12) 1986 | -9/Materials | Identified exit to Storage 2125 | -9/Materials | Discovered exit to Mines (range 14) 2431 | -9/Materials | Discovered new exit (range 10) 2901 | -9/Materials | Entered Mines 2981 | -9/Mines | A Derelict revealed a hidden shortcut to a safe place 3039 | -9/Mines | Received a Mining Laser from a helpful Derelict 3198 | -9/Mines | Learned Materials trap positions 3211 | -9/Mines | Deemed a non-threat by the Exiles lab entrance 3212 | -9/Mines | Discovered new exit (range 5) 3219 | -9/Mines | Entered Exiles 3259 | -9/Exiles | Met 8R-AWN 3284 | -9/Exiles | Met EX-HEX 3376 | -9/Exiles | Met EX-DEC 3417 | -9/Exiles | Learned location of Zion (-7) 3476 | -9/Exiles | Met EX-BIN 3688 | -9/Exiles | Aligned with FarCom system 3689 | -9/Exiles | Given EX-Vault access code 3898 | -9/Exiles | Visited The Gauntlet 4180 | -9/Exiles | Discovered new exit (range 14) 4203 | -9/Exiles | Entered Mines 4261 | -8/Mines | Core integrity fell below 50% 4297 | -8/Mines | Lost 8 parts (1p4n1u2w) 4845 | -8/Mines | Core integrity fell below 20% 5221 | -8/Mines | Build established: Scavenger-Mutant 5235 | -8/Mines | Discovered new exit (range 11) 5249 | -8/Mines | Discovered new exit (range 13) 5249 | -8/Mines | Destroyed by S-10 Pest with Light Assault Rifle Last Messages --------------- G-47 Trooper destroyed. B-36 Bruiser destroyed. Dropped Mining Laser. Acquired Adv. Beam Cannon. Dropped Ion Engine. Acquired Lgt. Nuclear Core. Dropped Ion Engine. Acquired 17 matter. Acquired 30 matter. Acquired Imp. Heat Sink. Acquired 28 matter. Acquired Hvy. Particle Cannon. Acquired Targeting Computer. Dropped Imp. Ion Engine. Acquired Lgt. Nuclear Core. T-07 Excavator destroyed. Acquired 26 matter. EXIT=FOUND C-30 ARC bursts open, deploying its payload. S-10 Pest unfolds itself. Map ----- +----------------------------------------------------+ | | | | | | | | | | | | | | | ??????????????????????????????? | | ??????????????????????????????? | | ??????????????????????????????? | | ??????????????????????? ????? | | ###???????????????????? ????? | | #?????????????#?????? ????? | | %##???????????# ?????<%s????? | | #??????????? ?????ss ????? | | ##?????????# ?????# ????? | | #????????? ?????# ????? | | = ##???????? ??????# #???? | | ##??????? ??????# #???? | | #??????# ?????## #???? | | * #?????## ?????? #???? | | ! ##?????? ??????? #???? | | ##???????< ???????? ##??? | | ##???????? ???????? ##?? | | ##????????? ????????# ##? | | ##??????????# #???????##@ #? | | #???????????# #????#### #? | | ##???????????# ###### ##? | | #????????????# #?? | | #????????????# ##### #? | | #????????????# #???## #? | | #????????????# #????## ##? | | #????????????# #?????### #?? | | #????????????# #???????## #?? | | #????????????#|#????????? #?? | | #????????????# #????????? ##?? | | #????????????#!#????????? ##??? | | ##???????????# #?????????##???? | | #???????????# #??????????????? | | #?########### #??????????????? | | ##?# #??????????????? | | #??# #######??????????????? | | #### # #????????????????????? | | # ##???????????????????? | | ####????????????????? | | ###### ##???????????????? | | ?????## #???????????????? | | ??????# #???????####????? | | ##????## #??????## ##???? | | # ##???## #?????## #???? | +----------------------------------------------------+ Best States ------------- Heat Dissipation 61 Energy Generation 14 Energy Capacity 265 Matter Stores 300 Matter Capacity 300 Sight Range 16 Terrain Scan Density 10 Armor Coverage 225 Evasion (%) 55 Targeting Accuracy 5 Recoil Reduction 3 Item Schematics ----------------- Hrd. Medium Armor Plating | -9/Materials | Scanalyzed Rocket Launcher | -9/Materials | Scanalyzed Robot Schematics ------------------ None Fabricated ------------ Nothing Alien Tech Used ----------------- None Achievements -------------- Tourist Challenges ------------ None Game ------ Seed ArmageddonMobileReplicator Manual? 0 Play Time 00:51:04 Cumulative 4.7 hours Start 2024.04.02 @ 10:38:33 End 2024.04.02 @ 17:06:14 Sessions 5 Manual Loads 0 Difficulty Rogue Special Mode None Game No. 7 Rogue 7 Adventurer 0 Explorer 0 Win Type - Total 0 Types 0/0/0/0/0/0/0/0/0 Lore% 1 Gallery% 10 Achievement% 10 Wizard Run 0 Options --------- Layout 1 ASCII 0 Keyboard 1 Movement Numpad Keybinds 0 Fullscreen 1 Font 24/Smallcaps Map View 50x35 Zoom Use 0% Tactical HUD 0 Map Filters NONE Filters NONE Steam 1 RUN: d3f83ee5-245e-428c-bcab-a4823cbcaa22